Workbook

Sheet Indkøbsliste
M1: =beregninger!M9 -> MEJERI I ALT
B2: Indkøbsliste
C3: Udført | D3: VARE | E3: BUTIK | F3: KATEGORI | G3: ANTAL | H3: ENHED | I3: ENHEDSPRIS | J3: I ALT | K3: KOMMENTAR | M3: =beregninger!L9 -> 37
C4: 1 | D4: Appelsiner | E4: Dagligvarebutik | F4: Frugt og grønt | G4: 2 | H4: Pund | I4: kr. 2.99 | J4: =IFERROR(Liste[ANTAL]*Liste[ENHEDSPRIS],"") -> kr. 5.98 | M4: =beregninger!M8 -> FRUGT OG GRØNT I ALT
D5: Æbler | E5: Frugtplantage | F5: Frugt og grønt | G5: 3 | H5: Pund | I5: kr. 1.99 | J5: =IFERROR(Liste[ANTAL]*Liste[ENHEDSPRIS],"") -> kr. 5.97 | K5: Har kupon | M5: =beregninger!L8 -> 45
D6: Bananer | E6: Dagligvarebutik | F6: Frugt og grønt | G6: 1 | H6: bundt | I6: kr. 3.99 | J6: =IFERROR(Liste[ANTAL]*Liste[ENHEDSPRIS],"") -> kr. 3.99
D7: Salat | E7: Marked | F7: Frugt og grønt | G7: 2 | H7: hoved | I7: kr. 2.29 | J7: =IFERROR(Liste[ANTAL]*Liste[ENHEDSPRIS],"") -> kr. 4.58 | M7: =beregninger!M7 -> KØD I ALT
D8: Tomater | E8: Marked | F8: Frugt og grønt | G8: 4 | H8: Pund | I8: kr. 3.49 | J8: =IFERROR(Liste[ANTAL]*Liste[ENHEDSPRIS],"") -> kr. 13.96 | M8: =beregninger!L7 -> 80
D9: Squash | E9: Marked | F9: Frugt og grønt | G9: 2 | H9: hver | I9: kr. 1.50 | J9: =IFERROR(Liste[ANTAL]*Liste[ENHEDSPRIS],"") -> kr. 3.00
D10: Bladselleri | E10: Dagligvarebutik | F10: Frugt og grønt | G10: 2 | H10: bundt | I10: kr. 1.99 | J10: =IFERROR(Liste[ANTAL]*Liste[ENHEDSPRIS],"") -> kr. 3.98 | M10: =beregninger!M6 -> FISK OG SKALDYR I ALT
D11: Agurk | E11: Marked | F11: Frugt og grønt | G11: 1 | H11: Pund | I11: kr. 2.29 | J11: =IFERROR(Liste[ANTAL]*Liste[ENHEDSPRIS],"") -> kr. 2.29 | M11: =beregninger!L6 -> 109
D12: Champignoner | E12: Dagligvarebutik | F12: Frugt og grønt | G12: 0.5 | H12: Pund | I12: kr. 2.25 | J12: =IFERROR(Liste[ANTAL]*Liste[ENHEDSPRIS],"") -> kr. 1.13 | K12: Store portobello
D13: Mælk | E13: Hjemmelevering | F13: Mejeri | G13: 2 | H13: gallon | I13: kr. 3.99 | J13: =IFERROR(Liste[ANTAL]*Liste[ENHEDSPRIS],"") -> kr. 7.98 | M13: =beregninger!M3 -> ANDET I ALT
D14: Ost | E14: Hjemmelevering | F14: Mejeri | G14: 1 | H14: Pund | I14: kr. 9.99 | J14: =IFERROR(Liste[ANTAL]*Liste[ENHEDSPRIS],"") -> kr. 9.99 | K14: Forskellige skæreoste | M14: =beregninger!L3 -> 0
D15: Æg | E15: Hjemmelevering | F15: Mejeri | G15: 2 | H15: dusin | I15: kr. 3.50 | J15: =IFERROR(Liste[ANTAL]*Liste[ENHEDSPRIS],"") -> kr. 7.00
D16: Hytteost | E16: Hjemmelevering | F16: Mejeri | G16: 1 | H16: 450 g | I16: kr. 3.89 | J16: =IFERROR(Liste[ANTAL]*Liste[ENHEDSPRIS],"") -> kr. 3.89 | M16: =beregninger!M4 -> INDKØB I ALT
D17: Cremefraiche | E17: Hjemmelevering | F17: Mejeri | G17: 1 | H17: 227 g | I17: kr. 2.99 | J17: =IFERROR(Liste[ANTAL]*Liste[ENHEDSPRIS],"") -> kr. 2.99 | M17: =IndkøbIAlt -> 271
D18: Yoghurt | E18: Dagligvarebutik | F18: Mejeri | G18: 1 | H18: 450 g | I18: kr. 4.99 | J18: =IFERROR(Liste[ANTAL]*Liste[ENHEDSPRIS],"") -> kr. 4.99 | K18: Græsk med honning
D19: Oksekød | E19: Marked | F19: Kød | G19: 10 | H19: Pund | I19: kr. 7.99 | J19: =IFERROR(Liste[ANTAL]*Liste[ENHEDSPRIS],"") -> kr. 79.90 | K19: Filet med baconsvøb
D20: Vildlaks | E20: Fisketorv | F20: Fisk og skaldyr | G20: 6 | H20: Pund | I20: kr. 8.99 | J20: =IFERROR(Liste[ANTAL]*Liste[ENHEDSPRIS],"") -> kr. 53.94
D21: Krabbeben (Alaskan King) | E21: Fisketorv | F21: Fisk og skaldyr | G21: 5 | H21: Pund | I21: kr. 10.99 | J21: =IFERROR(Liste[ANTAL]*Liste[ENHEDSPRIS],"") -> kr. 54.95

Sheet beregninger (hidden)
A1: *** Dette ark skal være skjult ***
K3: =SUM(Liste[I ALT])-SUM(K6:K9) -> kr. 0.00 | L3: =ROUND(K3,0) -> kr. 0 | M3: ANDET I ALT
L4: =ROUNDUP(SUM(Liste[I ALT]),0) -> kr. 271 | M4: INDKØB I ALT
E6: =IFERROR(INDEX(Liste[KATEGORI],MATCH(,COUNTIF($E$5:E5,Liste[KATEGORI]),)),"") -> Frugt og grønt | F6: =SUMIFS(Liste[I ALT],Liste[KATEGORI],E6) -> 44.875 | G6: =F6+ROW()/1000000 -> 44.875006 | H6: =LARGE($G$6:$G$21,1) -> 108.890009 | I6: =MATCH(H6,$G$6:$G$21,0) -> 4 | J6: =INDEX($E$6:$E$21,$I6) -> Fisk og skaldyr | K6: =INDEX($F$6:$F$21,$I6) -> kr. 108.89 | L6: =ROUND(K6,0) -> kr. 109 | M6: =UPPER(J6) & " I ALT" -> FISK OG SKALDYR I ALT
E7: =IFERROR(INDEX(Liste[KATEGORI],MATCH(,COUNTIF($E$5:E6,Liste[KATEGORI]),)),"") -> Mejeri | F7: =SUMIFS(Liste[I ALT],Liste[KATEGORI],E7) -> 36.84 | G7: =F7+ROW()/1000000 -> 36.840007 | H7: =LARGE($G$6:$G$21,2) -> 79.900008 | I7: =MATCH(H7,$G$6:$G$21,0) -> 3 | J7: =INDEX($E$6:$E$21,$I7) -> Kød | K7: =INDEX($F$6:$F$21,$I7) -> kr. 79.90 | L7: =ROUND(K7,0) -> kr. 80 | M7: =UPPER(J7) & " I ALT" -> KØD I ALT
E8: =IFERROR(INDEX(Liste[KATEGORI],MATCH(,COUNTIF($E$5:E7,Liste[KATEGORI]),)),"") -> Kød | F8: =SUMIFS(Liste[I ALT],Liste[KATEGORI],E8) -> 79.9 | G8: 79.900008 | H8: =LARGE($G$6:$G$21,3) -> 44.875006 | I8: =MATCH(H8,$G$6:$G$21,0) -> 1 | J8: =INDEX($E$6:$E$21,$I8) -> Frugt og grønt | K8: =INDEX($F$6:$F$21,$I8) -> kr. 44.88 | L8: =ROUND(K8,0) -> kr. 45 | M8: =UPPER(J8) & " I ALT" -> FRUGT OG GRØNT I ALT
E9: =IFERROR(INDEX(Liste[KATEGORI],MATCH(,COUNTIF($E$5:E8,Liste[KATEGORI]),)),"") -> Fisk og skaldyr | F9: =SUMIFS(Liste[I ALT],Liste[KATEGORI],E9) -> 108.89 | G9: 108.890009 | H9: =LARGE($G$6:$G$21,4) -> 36.840007 | I9: =MATCH(H9,$G$6:$G$21,0) -> 2 | J9: =INDEX($E$6:$E$21,$I9) -> Mejeri | K9: =INDEX($F$6:$F$21,$I9) -> kr. 36.84 | L9: =ROUND(K9,0) -> kr. 37 | M9: =UPPER(J9) & " I ALT" -> MEJERI I ALT
E10: =IFERROR(INDEX(Liste[KATEGORI],MATCH(,COUNTIF($E$5:E9,Liste[KATEGORI]),)),"") ->  | F10: =SUMIFS(Liste[I ALT],Liste[KATEGORI],E10) -> 0 | G10: 1e-05
E11: =IFERROR(INDEX(Liste[KATEGORI],MATCH(,COUNTIF($E$5:E10,Liste[KATEGORI]),)),"") ->  | F11: =SUMIFS(Liste[I ALT],Liste[KATEGORI],E11) -> 0 | G11: 1.1e-05
E12: =IFERROR(INDEX(Liste[KATEGORI],MATCH(,COUNTIF($E$5:E11,Liste[KATEGORI]),)),"") ->  | F12: =SUMIFS(Liste[I ALT],Liste[KATEGORI],E12) -> 0 | G12: 1.2e-05
E13: =IFERROR(INDEX(Liste[KATEGORI],MATCH(,COUNTIF($E$5:E12,Liste[KATEGORI]),)),"") ->  | F13: =SUMIFS(Liste[I ALT],Liste[KATEGORI],E13) -> 0 | G13: 1.3e-05
E14: =IFERROR(INDEX(Liste[KATEGORI],MATCH(,COUNTIF($E$5:E13,Liste[KATEGORI]),)),"") ->  | F14: =SUMIFS(Liste[I ALT],Liste[KATEGORI],E14) -> 0 | G14: 1.4e-05
E15: =IFERROR(INDEX(Liste[KATEGORI],MATCH(,COUNTIF($E$5:E14,Liste[KATEGORI]),)),"") ->  | F15: =SUMIFS(Liste[I ALT],Liste[KATEGORI],E15) -> 0 | G15: 1.5e-05
E16: =IFERROR(INDEX(Liste[KATEGORI],MATCH(,COUNTIF($E$5:E15,Liste[KATEGORI]),)),"") ->  | F16: =SUMIFS(Liste[I ALT],Liste[KATEGORI],E16) -> 0 | G16: 1.6e-05
E17: =IFERROR(INDEX(Liste[KATEGORI],MATCH(,COUNTIF($E$5:E16,Liste[KATEGORI]),)),"") ->  | F17: =SUMIFS(Liste[I ALT],Liste[KATEGORI],E17) -> 0 | G17: 1.7e-05
E18: =IFERROR(INDEX(Liste[KATEGORI],MATCH(,COUNTIF($E$5:E17,Liste[KATEGORI]),)),"") ->  | F18: =SUMIFS(Liste[I ALT],Liste[KATEGORI],E18) -> 0 | G18: 1.8e-05
E19: =IFERROR(INDEX(Liste[KATEGORI],MATCH(,COUNTIF($E$5:E18,Liste[KATEGORI]),)),"") ->  | F19: =SUMIFS(Liste[I ALT],Liste[KATEGORI],E19) -> 0 | G19: 1.9e-05
E20: =IFERROR(INDEX(Liste[KATEGORI],MATCH(,COUNTIF($E$5:E19,Liste[KATEGORI]),)),"") ->  | F20: =SUMIFS(Liste[I ALT],Liste[KATEGORI],E20) -> 0 | G20: 2e-05
E21: =IFERROR(INDEX(Liste[KATEGORI],MATCH(,COUNTIF($E$5:E20,Liste[KATEGORI]),)),"") ->  | F21: =SUMIFS(Liste[I ALT],Liste[KATEGORI],E21) -> 0 | G21: 2.1e-05
